bitfinex-derivatives/quotes_ETHF0:USTF0_20250105
["timestamp","ask_amount","ask_price","bid_price","bid_amount"]
[1736110495820,1.24700224,3635.1,3635.0,7.77521473]
[1736110496628,5.98434648,3635.1,3635.0,7.77521473]
[1736110497832,5.73672648,3635.1,3635.0,7.77521473]
[1736110498027,5.73672648,3635.1,3635.0,7.52759473]
[1736110498225,5.73672648,3635.1,3635.0,7.77521473]
[1736110498626,4.73734424,3635.1,3635.0,7.77521473]
[1736110499837,4.32454279,3635.1,3635.0,7.77521473]
[1736110504233,4.32454279,3635.1,3635.0,7.52759473]
[1736110504426,4.32454279,3635.1,3635.0,7.77521473]
[1736110505730,4.73734424,3635.1,3635.0,7.77521473]
[1736110506832,4.73734424,3635.1,3635.0,7.52759473]
[1736110507133,4.32454279,3635.1,3635.0,7.52759473]
[1736110507527,4.32454279,3635.1,3635.0,7.77521473]
[1736110508233,0.41280145,3635.2,3635.0,7.77521473]
[1736110508827,0.41280145,3635.2,3635.1,0.24762]
[1736110509636,7.21586757,3635.3,3635.2,0.24761]
[1736110510530,5.80488533,3635.3,3635.2,0.24761]
[1736110510728,5.80488533,3635.3,3635.2,1.24699224]
[1736110510927,0.41280145,3635.3,3635.2,4.56740473]
[1736110511128,1.41218369,3635.3,3635.2,4.31979473]
[1736110511436,1.65978369,3635.3,3635.2,4.31979473]
[1736110511832,8.66599098,3635.3,3635.2,4.31979473]
[1736110512138,0.24764,3634.8,3634.7,0.24765]
[1736110512438,1.24702224,3634.8,3634.7,0.24765]
[1736110512634,1.24702224,3634.8,3634.6,4.56744473]
[1736110512834,0.4441,3634.7,3634.6,4.56744473]
[1736110513033,0.8719,3634.7,3634.6,4.56744473]
[1736110513230,8.05773387,3634.7,3634.6,2.43379473]
[1736110513736,0.24765,3634.6,3634.4,2.68145473]
[1736110513935,0.4179,3634.6,3634.4,2.43379473]
[1736110514237,6.96491463,3634.7,3634.6,0.24765]
[1736110515126,6.17266616,3634.7,3634.6,0.24765]
[1736110515634,6.17266616,3634.7,3634.6,3.45545]
[1736110516333,5.75986471,3634.7,3634.6,3.45545]
[1736110516539,5.75986471,3634.7,3634.6,3.14531652]
[1736110516742,4.31638247,3634.7,3634.6,3.14531652]
[1736110516943,4.72918392,3634.7,3634.6,3.39296652]
[1736110518135,2.15802162,3635.0,3634.6,9.63752]
[1736110518331,2.15802162,3635.0,3634.9,1.24701224]
[1736110518944,2.15802162,3635.0,3634.9,1.68811224]
[1736110519140,2.15802162,3635.1,3634.9,1.44048224]
[1736110519440,2.15802162,3635.1,3635.0,3.45542]
[1736110519628,2.15802162,3635.1,3635.0,3.89452]
[1736110520433,0.4173,3635.9,3635.3,0.2476]
[1736110520434,2.15802162,3635.4,3635.3,0.2476]
[1736110521740,2.15802162,3635.5,3635.4,0.2476]
[1736110521932,2.15802162,3635.5,3635.4,3.4554]
[1736110523633,2.15802162,3635.5,3635.4,5.66911672]
[1736110524033,2.15802162,3635.6,3635.5,0.24759]
[1736110524234,2.15802162,3635.6,3635.5,1.74639]
[1736110525041,2.15802162,3635.9,3635.8,0.24757]
[1736110525244,2.15802162,3635.9,3635.8,3.45537]
[1736110525835,2.15802162,3635.9,3635.8,3.88117]
[1736110526541,2.15802162,3636.3,3635.8,3.6336]
[1736110526738,0.24755,3636.2,3635.8,3.88117]
[1736110526936,2.40556162,3636.3,3635.9,0.24756]
[1736110527239,0.4148,3636.1,3636.0,0.24756]
[1736110540550,4.79623834,3636.4,3636.3,0.24754]
[1736110540551,2.15802162,3636.4,3636.3,0.24754]
[1736110540751,0.4293,3636.5,3636.4,0.24753]
[1736110540946,1.42813589,3636.5,3636.4,0.24753]
[1736110542457,1.42813589,3636.5,3635.8,3.6336]
[1736110542657,1.42813589,3636.5,3635.9,0.24756]
[1736110542658,0.99883589,3636.0,3635.9,0.24756]
[1736110544459,0.99883589,3636.0,3635.8,3.6336]
[1736110544460,0.99883589,3636.2,3635.8,4.25253]
[1736110544653,0.99883589,3636.2,3636.1,0.24755]
[1736110560365,2.58732162,3636.5,3635.8,3.6336]
[1736110560665,0.99883589,3636.1,3635.8,3.6336]
[1736110560863,0.99883589,3636.1,3636.0,0.24756]
[1736110562570,1.41123589,3636.1,3636.0,0.24756]
[1736110564665,4.64826833,3636.1,3636.0,0.24756]
[1736110565866,3.649705,3636.1,3636.0,0.24756]
[1736110567459,3.649705,3636.2,3636.1,0.24755]
[1736110568070,3.649705,3636.2,3636.1,0.65645]
[1736110569776,0.41267256,3636.2,3636.1,0.65645]
[1736110570668,0.41267256,3636.2,3636.1,1.65528589]
[1736110570862,0.41267256,3636.2,3636.1,0.65645]
[1736110571066,4.31638247,3636.3,3636.2,0.24754]
[1736110571275,4.31638247,3636.3,3636.2,3.45534]
[1736110572473,0.4087,3636.4,3636.3,0.24754]
[1736110572474,2.84305503,3636.4,3636.3,0.24754]
[1736110572672,2.84305503,3636.4,3636.3,1.66347589]
[1736110573577,2.1618429,3636.5,3636.3,1.41593589]
[1736110573777,2.1618429,3636.5,3636.4,1.24636589]
[1736110574879,2.1618429,3636.7,3636.6,0.24752]
[1736110575075,2.1618429,3636.7,3636.6,3.45532]
[1736110575266,2.1618429,3636.7,3636.6,0.24752]
[1736110576073,3.24276435,3636.7,3636.6,0.24752]
[1736110577980,0.24752,3636.6,3636.3,6.48788112]
[1736110578170,0.99883589,3636.4,3636.3,6.73541112]
[1736110578573,0.99883589,3636.4,3636.3,0.24753]
[1736110578873,1.44303589,3636.4,3636.3,0.24753]
[1736110579976,1.85566102,3636.4,3636.3,0.24753]
[1736110582482,1.85566102,3636.4,3636.2,3.45534]
[1736110582681,1.85566102,3636.4,3636.3,0.24754]
[1736110583182,1.44303589,3636.4,3636.3,0.24754]
[1736110583775,0.4442,3636.4,3636.3,0.24754]
[1736110584175,0.85686993,3636.4,3636.3,0.66664]
[1736110584372,0.85686993,3636.4,3636.3,1.09094]
[1736110584580,0.41266993,3636.4,3636.3,2.08977589]
[1736110585081,3.24010668,3636.4,3636.3,2.08977589]
[1736110586275,2.15999064,3636.4,3636.3,2.08977589]
[1736110587083,2.15999064,3636.4,3636.3,1.09094]
[1736110588279,2.15999064,3636.4,3636.3,4.29874]
[1736110591590,2.57439064,3636.4,3636.3,4.29874]
[1736110592287,0.4144,3636.4,3636.3,4.29874]
[1736110592486,0.4144,3636.4,3636.3,3.45534]
[1736110592693,0.8285,3636.4,3636.3,3.2078]
[1736110593487,4.06860668,3636.4,3636.3,3.2078]
[1736110593891,0.8285,3636.4,3636.3,3.2078]
[1736110594490,1.24115073,3636.4,3636.3,3.2078]
[1736110595095,1.48868073,3636.4,3636.3,3.2078]
[1736110596391,1.07603,3636.4,3636.3,3.2078]
[1736110597494,1.48868073,3636.4,3636.3,3.2078]
[1736110598301,1.24115073,3636.4,3636.3,3.2078]
[1736110600598,0.82705073,3636.4,3636.3,3.2078]
[1736110601895,0.82705073,3636.4,3636.2,0.24754]
[1736110603407,0.82705073,3636.4,3636.3,0.24754]
[1736110603908,0.82705073,3636.4,3636.1,3.2078]
[1736110603909,4.73260434,3636.4,3636.1,3.2078]
[1736110604105,4.73260434,3636.4,3636.2,0.24754]
[1736110605205,3.23861796,3636.3,3636.2,0.24754]
[1736110606304,3.65128503,3636.3,3636.2,0.24754]
[1736110609805,3.65128503,3636.3,3636.1,3.2078]
[1736110610007,3.65128503,3636.3,3636.2,0.24754]
[1736110610204,0.41266707,3636.3,3636.2,0.24754]
[1736110611309,0.41266707,3636.3,3636.1,3.2078]
[1736110611504,0.41266707,3636.3,3636.2,0.24754]
[1736110611706,5.7313503,3636.4,3636.2,0.24754]
[1736110613010,0.41266707,3636.3,3636.2,0.24754]
[1736110616116,3.64961087,3636.3,3636.2,0.24754]
[1736110618015,3.64961087,3636.3,3636.2,0.65414]
[1736110620021,3.64961087,3636.3,3636.2,0.4066]
[1736110620214,0.41266707,3636.3,3636.1,3.2078]
[1736110620411,0.24756,3636.0,3635.8,6.48788112]
[1736110620612,1.41494596,3635.9,3635.8,6.48788112]
[1736110620816,1.85174596,3635.9,3635.8,6.73545112]
[1736110621626,5.0892578,3635.9,3635.8,0.24757]
[1736110623223,5.50196487,3635.9,3635.8,0.24757]
[1736110623427,4.50321891,3635.9,3635.8,0.24757]
[1736110623825,5.50196487,3635.9,3635.7,0.69527]
[1736110624027,5.50196487,3635.9,3635.8,0.24757]
[1736110625517,5.50196487,3635.9,3635.7,0.69527]
[1736110625719,5.50196487,3635.9,3635.8,0.24757]
[1736110630822,5.0892578,3635.9,3635.8,0.24757]
[1736110633332,2.26446351,3635.9,3635.8,0.24757]
[1736110634219,1.85174596,3635.9,3635.8,0.24757]
[1736110635931,2.26446351,3635.9,3635.8,0.24757]
[1736110637931,2.26446351,3635.9,3635.7,3.2078]
[1736110638131,0.24757,3635.8,3635.7,3.2078]
[1736110638935,2.26446351,3635.9,3635.7,3.45538]
[1736110639437,0.24757,3635.8,3635.7,3.45538]
[1736110639626,0.66028755,3635.8,3635.7,3.45538]
[1736110640332,0.41271755,3635.8,3635.7,3.45538]
[1736110640537,4.72753476,3635.8,3635.7,3.45538]
[1736110641438,4.97510476,3635.8,3635.7,3.45538]
[1736110641735,4.72753476,3635.8,3635.7,3.45538]
[1736110644037,4.97510476,3635.8,3635.7,3.45538]
[1736110645835,4.97510476,3635.8,3635.7,0.24758]
[1736110647842,0.66028755,3635.8,3635.7,0.24758]
[1736110648937,0.41271755,3635.8,3635.5,3.62]
[1736110649141,0.99874596,3635.6,3635.5,3.62]
[1736110649342,1.24632596,3635.6,3635.5,3.86759]
[1736110650543,0.99874596,3635.6,3635.5,3.86759]
[1736110651141,4.23319337,3635.6,3635.5,3.86759]
[1736110652343,0.99874596,3635.6,3635.5,3.86759]
[1736110653044,1.24632596,3635.6,3635.5,3.62]
[1736110653344,3.23444741,3635.6,3635.5,3.62]
[1736110653541,3.23444741,3635.6,3635.5,3.86759]
[1736110653542,4.23319337,3635.6,3635.5,3.86759]
[1736110654541,0.99874596,3635.6,3635.5,3.86759]
[1736110655537,3.48202741,3635.7,3635.5,3.86759]
[1736110655743,3.23444741,3635.7,3635.6,0.24758]
[1736110657245,4.48076337,3635.8,3635.6,0.24758]
[1736110657944,0.24758,3635.7,3635.6,0.24758]
[1736110658546,3.48202741,3635.7,3635.6,0.24758]
[1736110660544,3.23444741,3635.7,3635.6,0.24758]
[1736110661045,3.64718838,3635.7,3635.6,0.24758]
[1736110661848,3.64718838,3635.7,3635.6,1.24632596]
[1736110663449,3.64718838,3635.8,3635.7,0.24758]
[1736110666043,2.15957246,3636.0,3635.7,8.65220935]
[1736110666349,2.15957246,3636.0,3635.9,4.45410596]
[1736110667348,2.15957246,3636.1,3636.0,0.24756]
[1736110667541,2.15957246,3636.1,3636.0,0.69376]
[1736110668154,2.15957246,3636.1,3636.0,5.01932583]
[1736110670644,2.15957246,3636.1,3636.0,0.69376]
[1736110672051,2.15957246,3636.2,3636.0,0.4462]
[1736110672251,2.15957246,3636.2,3636.1,1.24629596]
[1736110673143,2.15957246,3636.3,3636.1,0.99874596]
[1736110673350,2.15957246,3636.3,3636.2,0.24754]
[1736110673654,2.15957246,3636.3,3636.2,0.67554]
[1736110677146,1.48407246,3636.4,3636.3,0.24754]
[1736110677354,3.23444741,3636.6,3636.3,5.65529192]
[1736110677657,3.23444741,3636.6,3636.5,2.24501192]
[1736110677858,3.23444741,3636.6,3636.5,1.24626596]
[1736110678050,3.23444741,3636.6,3636.5,2.24501192]
[1736110678251,3.23444741,3636.6,3636.5,1.24626596]
[1736110678756,0.4226,3637.2,3636.5,7.48781779]
[1736110678952,0.4226,3637.2,3637.1,4.45402596]
[1736110679151,0.4226,3637.2,3637.1,5.52902596]
[1736110680757,1.42134596,3637.2,3637.1,4.2828]
[1736110681352,1.42134596,3637.2,3637.1,4.53028]
[1736110682757,1.42134596,3637.2,3637.1,4.2828]
[1736110683359,1.42134596,3637.2,3637.1,3.2078]
[1736110684058,1.42134596,3637.2,3637.1,0.24748]
[1736110684263,0.4226,3637.2,3637.1,4.45402596]
[1736110686059,0.4226,3637.2,3637.1,3.45528]
[1736110688470,0.4226,3637.2,3637.1,3.2078]
[1736110688663,1.42134596,3637.2,3636.9,0.2475]
[1736110688864,1.42134596,3637.2,3637.0,0.24748]
[1736110688865,0.4115,3637.1,3637.0,0.24748]
[1736110692875,0.4115,3637.1,3636.9,0.24749]
[1736110693077,0.4225,3637.0,3636.9,0.24749]
[1736110693871,0.4225,3637.0,3636.9,1.24623596]
[1736110694979,0.4225,3637.0,3636.9,0.24749]
[1736110705781,0.61875,3636.9,3636.4,1.85386329]
[1736110705982,0.24754,3636.3,3636.2,0.06982378]
[1736110706183,0.24755,3636.1,3636.0,7.22857136]
[1736110706482,11.23844565,3636.1,3636.0,7.22857136]
[1736110707683,16.23844565,3636.1,3636.0,7.22857136]
[1736110707885,0.2476,3635.4,3635.1,0.24762]
[1736110708078,0.2476,3635.4,3635.1,3.2078]
[1736110708278,0.2476,3635.4,3635.1,3.45542]
[1736110708582,3.2078,3635.5,3635.1,3.2078]
[1736110708880,0.2476,3635.4,3635.1,3.45542]
[1736110709276,5.42260228,3635.5,3635.1,3.2078]
[1736110709479,0.24761,3635.3,3635.1,3.2078]
[1736110712084,0.24761,3635.3,3635.2,3.2078]
[1736110713380,3.4554,3635.4,3635.2,3.2078]
[1736110713585,3.2078,3635.4,3635.2,3.2078]
[1736110713786,0.2476,3635.3,3635.2,3.2078]
[1736110714187,3.2078,3635.4,3635.2,3.2078]
[1736110714390,3.4554,3635.4,3635.2,3.2078]
[1736110715088,0.2476,3635.3,3635.2,3.2078]
[1736110716190,3.4554,3635.4,3635.2,3.2078]
[1736110719694,3.2078,3635.4,3635.3,3.4554]
[1736110722290,3.45538,3635.7,3635.4,0.2476]
[1736110722486,3.45538,3635.7,3635.5,4.0705]
[1736110722692,0.24758,3635.6,3635.5,4.0705]
[1736110723591,0.24758,3635.6,3635.5,1.59390463]
[1736110724287,0.24758,3635.6,3635.5,1.84149463]
[1736110727586,0.24758,3635.6,3635.5,1.59390463]
[1736110728393,0.24758,3635.6,3635.5,2.42770463]
[1736110731002,1.2468923,3635.6,3635.5,2.42770463]
[1736110740207,3.2078,3635.7,3635.5,3.42701693]
[1736110740404,3.2078,3635.7,3635.6,2.26188463]
[1736110741104,3.45538,3635.7,3635.6,2.01430463]
[1736110741311,3.45538,3635.7,3635.6,2.26188463]
[1736110742509,3.45538,3635.7,3635.6,2.01430463]
[1736110744910,0.24758,3635.7,3635.6,2.01430463]
[1736110746713,0.24758,3635.7,3635.6,2.26188463]
[1736110747018,0.24758,3635.7,3635.6,2.01430463]
[1736110748106,0.24758,3635.7,3635.6,1.59390463]
[1736110748319,0.69128,3635.7,3635.6,1.59390463]
[1736110749413,0.69128,3635.7,3635.5,0.8338]
[1736110749414,0.24758,3635.6,3635.5,0.8338]
[1736110749614,1.2468923,3635.6,3635.5,2.42770463]
[1736110751220,5.96349572,3635.6,3635.5,2.42770463]
[1736110752119,12.34462812,3635.6,3635.5,2.42770463]
[1736110753315,7.05936558,3635.6,3635.5,2.42770463]
[1736110754524,12.34462812,3635.6,3635.5,2.42770463]
[1736110760824,12.09704812,3635.6,3635.5,2.67529463]
[1736110761827,12.34462812,3635.6,3635.5,2.42770463]
[1736110762124,12.09704812,3635.6,3635.5,2.42770463]
[1736110762526,12.09704812,3635.6,3635.5,2.67529463]
[1736110765119,12.09704812,3635.6,3635.5,1.08139]
[1736110765324,12.09704812,3635.6,3635.5,2.67529463]
[1736110765515,11.09773582,3635.6,3635.5,2.67529463]
[1736110766619,5.69804161,3635.6,3635.5,2.67529463]
[1736110767423,5.69804161,3635.6,3635.5,3.67460693]
[1736110768931,0.41277907,3635.6,3635.5,3.67460693]
[1736110770834,7.52655824,3635.7,3635.6,0.24758]
[1736110771028,4.31875824,3635.7,3635.6,1.84148463]
[1736110773124,4.73153731,3635.7,3635.6,1.84148463]
[1736110774628,0.41277907,3635.7,3635.6,5.04928463]
[1736110774835,2.84553731,3635.8,3635.7,1.84148463]
[1736110775021,0.81933731,3635.8,3635.7,3.26019693]
[1736110775229,5.39969421,3636.1,3635.7,8.01261693]
[1736110775429,5.39969421,3636.1,3636.0,6.04857693]
[1736110775630,5.39969421,3636.1,3636.0,7.13057693]
[1736110776133,3.23831484,3636.4,3636.3,0.24754]
[1736110776335,3.23831484,3636.4,3636.3,1.2468523]
[1736110776533,3.23831484,3636.4,3636.3,2.84075693]
[1736110777033,7.44542714,3636.8,3636.7,0.24751]
[1736110777233,7.44542714,3636.8,3636.7,1.84141463]
[1736110779634,4.2071123,3636.8,3636.7,1.84141463]
[1736110781038,3.2078,3636.8,3636.7,2.84072693]
[1736110787939,4.2071123,3636.8,3636.7,1.84141463]
[1736110788241,4.6145123,3636.8,3636.7,1.59390463]
[1736110788733,4.6145123,3636.8,3636.0,3.2078]
[1736110788936,0.24751,3636.7,3636.6,1.59390463]
[1736110790641,0.24751,3636.7,3636.1,1.082]
[1736110790939,0.9993123,3636.5,3636.4,0.24753]
[1736110791833,0.9993123,3636.5,3636.1,1.082]
[1736110792029,0.9993123,3636.3,3636.2,0.24754]
[1736110792341,0.4408,3636.4,3636.3,0.24754]
[1736110802354,0.444,3636.6,3636.5,0.24752]
[1736110802960,0.444,3636.6,3636.5,0.69022]
[1736110803258,2.39838138,3637.0,3636.9,0.2475]
[1736110803259,2.15089138,3637.0,3636.9,0.2475]
[1736110803455,2.15089138,3637.0,3636.9,1.2468123]
[1736110804056,2.15089138,3637.0,3636.9,0.2475]
[1736110804251,2.15089138,3637.3,3637.2,0.24748]
[1736110805553,6.19239138,3637.4,3636.6,2.83074061]
[1736110805761,6.19239138,3637.4,3637.3,0.24747]
[1736110807455,8.40433199,3637.4,3636.5,3.6505]
[1736110807658,3.2078,3637.0,3636.2,6.48348388]
[1736110807862,0.441,3636.9,3636.4,0.4272]
[1736110808064,0.6885,3636.9,3636.6,0.24751]
[1736110808264,0.6885,3636.9,3636.4,0.4272]
[1736110808563,0.6885,3636.9,3636.6,0.24751]
[1736110808959,2.58419138,3636.8,3636.7,0.24751]
[1736110809258,2.58419138,3636.8,3636.4,0.4272]
[1736110809462,0.4262,3636.7,3636.1,0.4227]
[1736110809657,0.4262,3636.7,3636.4,0.24753]
[1736110809858,0.4262,3636.7,3636.5,0.24752]
[1736110809859,0.67371,3636.7,3636.5,0.24752]
[1736110810466,2.15089138,3636.6,3636.5,0.24752]
[1736110812267,5.38920622,3636.7,3636.1,0.4227]
[1736110812464,2.15089138,3636.7,3636.6,0.24752]
[1736110813467,3.67161484,3636.8,3636.3,2.21194061]
[1736110813667,3.67161484,3636.8,3636.7,0.24751]
[1736110814770,4.08425029,3636.8,3636.7,0.24751]
[1736110816172,0.84593545,3636.8,3636.7,0.24751]
[1736110816866,0.41263545,3636.8,3636.7,0.24751]
[1736110817267,5.15785481,3636.9,3636.3,2.46514061]
[1736110817463,4.71685481,3636.9,3636.8,0.2475]
[1736110817663,4.71685481,3636.9,3636.8,1.3275]
[1736110818577,3.6511,3637.4,3636.8,1.3275]
[1736110818578,2.15464667,3637.2,3637.1,0.24748]
[1736110819463,3.64452652,3637.3,3636.9,3.28794061]
[1736110819670,3.64452652,3637.3,3637.2,0.24748]
[1736110820270,3.64452652,3637.3,3637.2,2.45942061]
[1736110820779,3.23197,3637.3,3637.2,0.24748]
[1736110822370,2.15506996,3637.3,3637.2,0.24748]
[1736110822877,2.15506996,3637.3,3637.2,2.45942061]
[1736110824676,2.15506996,3637.4,3637.2,2.21194061]
[1736110824875,2.15506996,3637.4,3637.3,0.24747]
[1736110825678,0.4224,3637.7,3637.6,0.24745]
[1736110825679,2.57746996,3637.7,3637.6,0.24745]
[1736110825881,2.57746996,3637.7,3637.6,3.53639061]
[1736110826877,6.43977,3637.9,3637.7,0.24744]
[1736110826878,2.15506996,3637.8,3637.7,0.24744]
[1736110827078,2.15506996,3637.8,3637.7,0.66764]
[1736110828777,2.15506996,3638.0,3637.9,0.24743]
[1736110829777,2.97886996,3638.1,3637.7,0.4202]
[1736110830278,2.97886996,3638.1,3637.8,0.24743]
[1736110830471,2.97886996,3638.1,3637.9,0.24743]
[1736110830472,0.4146,3638.0,3637.9,0.24743]
[1736110830672,0.24743,3637.9,3637.6,1.32445]
[1736110830873,3.2078,3637.8,3637.6,1.32445]
[1736110831681,3.2078,3637.8,3637.6,1.077]
[1736110831977,3.2078,3637.8,3637.7,0.24744]
[1736110834782,6.02488996,3638.0,3637.8,0.24743]
[1736110835480,5.77746996,3638.0,3637.9,0.24743]
[1736110836279,3.6224,3638.0,3637.9,0.24743]
[1736110838175,3.2078,3638.0,3637.9,0.24743]
[1736110839075,3.2078,3638.0,3637.9,2.45937061]
[1736110840988,3.2078,3638.0,3637.9,0.24743]
[1736110842087,3.2078,3638.0,3637.9,2.45937061]
[1736110842678,3.45522,3638.0,3637.3,0.4142]
[1736110842986,3.2078,3637.6,3637.1,4.31807374]
[1736110843189,3.45525,3637.6,3637.2,0.24747]
[1736110843491,0.446,3637.5,3637.2,0.24747]
[1736110843684,0.446,3637.5,3636.9,2.21194061]
[1736110843888,0.4483,3637.4,3636.9,1.077]
[1736110844083,0.4437,3637.3,3637.1,0.24748]
[1736110844779,0.4437,3637.3,3636.9,1.077]
[1736110844978,3.2078,3637.2,3636.9,0.2475]
[1736110845185,3.2078,3637.2,3636.7,3.2078]
[1736110845387,3.2078,3637.2,3636.9,0.24749]
[1736110846890,3.2078,3637.2,3636.9,2.21194061]
[1736110847188,0.4437,3637.3,3636.9,2.21194061]
[1736110847389,0.4437,3637.3,3637.2,0.24748]
[1736110850194,0.4437,3637.3,3637.2,2.45942061]
[1736110852189,0.4483,3637.4,3637.2,2.21194061]
[1736110852390,2.15506996,3637.6,3637.3,1.5223]
[1736110852587,2.15506996,3637.6,3637.5,2.21194061]
[1736110852895,2.15506996,3637.6,3637.5,2.45939061]
[1736110853490,0.8934,3637.8,3637.7,0.24744]
[1736110854293,5.36286996,3638.0,3637.5,2.21194061]
[1736110854590,5.36286996,3638.0,3637.9,2.45937061]
[1736110856087,3.2078,3638.0,3637.9,2.45937061]
[1736110858386,0.8549,3638.3,3637.9,2.21194061]
[1736110858588,3.00996996,3638.3,3638.0,1.075]
[1736110858786,3.2078,3638.1,3637.6,1.075]
[1736110858988,0.65623,3638.0,3637.7,0.24744]
[1736110859289,0.24743,3637.9,3637.6,0.24745]
[1736110859489,0.24743,3637.9,3636.9,14.63234646]
[1736110859490,3.2078,3637.7,3637.2,4.31807374]
[1736110859691,0.4091,3637.6,3637.2,4.31807374]
[1736110859894,0.24746,3637.5,3637.2,4.56554374]
[1736110860193,1.09125,3637.6,3637.2,4.56554374]
[1736110860597,1.09125,3637.6,3637.2,4.31807374]
[1736110860807,1.09125,3637.6,3637.3,0.24747]
[1736110860989,1.09125,3637.6,3637.3,2.45941061]
[1736110860990,2.15506996,3637.4,3637.3,2.45941061]
[1736110862095,2.15506996,3637.6,3637.5,0.24745]
[1736110863498,5.39969421,3638.2,3638.0,0.24742]
[1736110863499,2.15506996,3638.1,3638.0,0.24742]
[1736110864799,3.64443269,3638.2,3638.1,0.24741]
[1736110865990,3.64443269,3638.2,3638.0,0.24742]
[1736110866389,3.64443269,3638.2,3638.1,0.24741]
[1736110869805,4.04817,3638.3,3638.0,2.21194061]
[1736110869995,4.04817,3638.3,3638.2,0.24741]
[1736110870701,4.70801062,3638.3,3638.0,0.24742]
[1736110871209,0.24743,3637.8,3637.7,4.31921086]
[1736110871397,3.2078,3637.9,3637.7,4.31921086]
[1736110871603,0.4371,3637.8,3637.7,4.56665086]
[1736110872001,0.84954062,3637.8,3637.7,0.24744]
[1736110873102,0.4371,3637.8,3637.7,0.24744]
[1736110873500,3.23336099,3637.9,3637.8,0.24743]
[1736110874301,2.59304822,3638.1,3637.7,6.53115147]
[1736110874504,2.59304822,3638.1,3638.0,0.24742]
[1736110874801,2.84046822,3638.1,3637.7,4.56665086]
[1736110875193,2.59304822,3638.1,3637.8,0.24743]
[1736110875392,2.84046822,3638.1,3637.7,4.31921086]
[1736110875597,2.15594822,3638.0,3637.6,0.24744]
[1736110876293,2.15594822,3638.0,3637.7,0.24744]
[1736110876508,2.15594822,3638.0,3637.8,0.24743]
[1736110876897,3.64584941,3638.0,3637.9,0.24743]
[1736110878296,3.23336099,3638.0,3637.9,0.24743]
[1736110879508,2.15579473,3638.1,3638.0,0.24742]
[1736110879709,2.15579473,3638.1,3638.0,3.53436061]
[1736110880410,2.15579473,3638.4,3638.0,3.28694061]
[1736110880707,2.15579473,3638.4,3638.3,5.66714061]
[1736110882008,2.15579473,3638.4,3638.3,5.41974061]
[1736110882416,0.4444,3638.7,3638.3,9.73895147]
[1736110882604,0.4444,3638.7,3638.6,2.21194061]
[1736110882912,0.4444,3638.7,3638.4,1.076]
[1736110884107,0.69177,3638.7,3638.4,1.076]
[1736110884308,0.4444,3638.7,3638.4,1.076]
[1736110884504,3.2078,3638.5,3638.1,4.31921086]
[1736110885314,0.24741,3638.2,3638.1,4.31921086]
[1736110886106,0.24741,3638.1,3638.0,1.076]
[1736110886407,1.08191,3638.1,3638.0,1.076]
[1736110887910,0.24743,3637.8,3637.7,2.21194061]
[1736110888116,0.24743,3637.8,3637.7,1.076]
[1736110888511,4.0423,3638.1,3637.3,4.31921086]
[1736110888714,0.24746,3637.4,3637.3,4.31921086]
[1736110889615,2.15579473,3637.5,3637.1,2.21194061]
[1736110889816,0.24748,3637.2,3637.1,2.21194061]
[1736110895619,0.24752,3636.6,3636.5,4.31921086]
[1736110896415,0.442,3636.8,3636.3,1.076]
[1736110896416,0.24753,3636.4,3636.3,1.076]
[1736110897519,0.24754,3636.3,3636.2,2.21194061]
[1736110911724,0.24755,3636.1,3635.9,2.21194061]
[1736110911924,0.24755,3636.1,3636.0,1.076]
[1736110912326,0.4303,3636.4,3636.0,1.076]
[1736110912527,0.24755,3636.2,3636.0,1.076]
[1736110913533,0.24755,3636.1,3636.0,1.076]
[1736110913728,0.24755,3636.2,3636.0,1.076]
[1736110913929,0.24755,3636.1,3636.0,1.076]
[1736110914435,0.24755,3636.2,3635.9,2.21194061]
[1736110914631,0.24755,3636.2,3636.0,1.076]
[1736110916336,0.24754,3636.3,3636.0,1.32356]
[1736110916635,0.24754,3636.3,3636.2,2.21194061]
[1736110917224,0.24752,3636.6,3636.3,0.24754]
[1736110917541,0.24751,3636.7,3636.5,2.21194061]
[1736110917833,2.3983935,3637.2,3636.9,0.24749]
[1736110918030,2.1509135,3637.2,3637.0,6.92774061]
[1736110918231,2.1509135,3637.2,3637.1,0.837]
[1736110918939,0.24748,3637.2,3637.1,0.837]
[1736110919332,0.24748,3637.2,3637.1,0.4218]
[1736110919528,3.2078,3637.3,3636.9,1.076]
[1736110919731,0.24749,3637.0,3636.9,1.076]
[1736110922842,0.4122,3637.1,3636.9,1.076]
[1736110922843,0.65969,3637.1,3636.9,1.076]
[1736110923032,0.24748,3637.2,3637.0,2.21194061]
[1736110923538,0.24748,3637.2,3637.1,0.4113]
[1736110924133,0.4122,3637.5,3637.0,2.21194061]
[1736110924340,0.24748,3637.1,3637.0,2.21194061]
[1736110924639,0.4122,3637.5,3636.9,1.076]
[1736110924843,0.24749,3637.0,3636.9,1.076]
[1736110928539,0.24751,3636.7,3636.6,0.4218]
[1736110928843,0.24752,3636.6,3636.5,1.075]
[1736110929042,0.69342,3636.6,3636.5,1.075]
[1736110931840,0.69342,3636.6,3636.4,2.21194061]
[1736110931841,0.24752,3636.5,3636.4,2.21194061]
[1736110932447,0.4459,3636.6,3636.2,0.8799]
[1736110932637,0.24754,3636.3,3636.2,1.5074]
[1736110932839,0.24754,3636.3,3636.2,0.4324]
[1736110933835,0.24754,3636.3,3635.9,0.8406]
[1736110934048,0.24755,3636.1,3636.0,1.075]
[1736110934443,3.6404,3636.4,3635.9,0.4378]
[1736110934648,0.24756,3635.9,3635.8,4.31224875]
[1736110935046,0.68016,3635.9,3635.8,4.31224875]
[1736110936143,0.68016,3635.9,3635.7,7.98117313]
[1736110936144,0.68016,3635.9,3635.7,1.5128]
[1736110936345,0.24757,3635.8,3635.7,1.5128]
[1736110937248,0.24757,3635.8,3635.7,0.4378]
[1736110937546,0.24757,3635.8,3635.7,1.5138]
[1736110940455,0.4326,3635.9,3635.5,2.21194061]
[1736110940654,0.24759,3635.5,3635.4,5.38824875]
[1736110941152,0.24759,3635.5,3635.4,1.076]
[1736110942361,0.24761,3635.2,3635.1,4.31224875]
[1736110942553,0.24761,3635.2,3635.1,5.38724875]
[1736110942750,0.24761,3635.2,3635.1,4.31224875]
[1736110943359,0.4328,3635.3,3635.0,1.4906]